Cogmind - Beta 17 @@@ ROGUE MODE // 2026.07.18 @ 14:32:58 Player: Smol John Result: Destroyed by S-27 Virus with Autogun Performance ------------- Evolutions (3) 1500 Regions Visited (9) 1800 Robots Destroyed (55) 275 Value Destroyed (2487) 2487 Prototype IDs (24) 480 Alien Tech Used (0) 0 Bonus (2129) 2129 TOTAL SCORE: 8671 Bonus ------- High Alert Combat Kills 182 Follower Combat Kills 247 Entered Garrisons 400 Used RIF Installer 1000 Aligned with FarCom 300 Cogmind --------- Core Integrity 0/700 Matter 70/300 Energy 100/100 System Corruption 2% Temperature Cool (0) Movement Walking (45) Location -7/Garrison Parts ------- > --- POWER (1) -------- (None) > --- PROPULSION (5) --- Potential Leg > --- UTILITY (5) ------ Small Storage Unit Authchip [R/NC] Authchip [R/Combat] Authchip [R/Combat] Relay Coupler [Sentry] (22) > --- WEAPON (2) ------- Heavy Mass Driver > --- INVENTORY (8) ---- Light Nuclear Core Compact Wheel Improved Signal Interpreter Assault Rifle Autogun Peak State ------------ > --- POWER ------------ Light Nuclear Core > --- PROPULSION ------- Carbon-fiber Leg Improved Titanium Leg Improved Titanium Leg Potential Leg Potential Leg > --- UTILITY ---------- Small Storage Unit Authchip [R/NC] Authchip [R/Combat] Authchip [R/Combat] Relay Coupler [Sentry] > --- WEAPON ----------- Heavy Mass Driver > --- INVENTORY -------- Light Nuclear Core Compact Wheel Assault Rifle Autogun Autogun Heavy Mass Driver Heavy Mace [Rating: 65] Favorites ----------- Power Light Nuclear Core Engine Light Deuterium Engine Power Core Light Nuclear Core Propulsion Potential Leg Leg Potential Leg Wheel Wheel Utility Small Storage Unit Storage Small Storage Unit Processor Machine Analyzer Hackware Authchip [R/Combat] Protection Hardened Heavy Armor Plating Weapon Assault Rifle Energy Gun Field Laser Ballistic Gun Assault Rifle Ballistic Cannon Heavy Mass Driver Launcher Missile Launcher Impact Weapon Heavy Mace Slashing Weapon Katana Build | -11 -10 -10 -10 -9 -8 -7 -7 -7 -7 ------- Run | Yrd Mat Min Exi Min Mat Fac Gar Fac Gar Slots Evolved 6 | . . . . . 4 2 . . . Power . | . . . . . . . . . . Propulsion 3 | . . . . . 2 1 . . . Utility 3 | . . . . . 2 1 . . . Weapon . | . . . . . . . . . . Parts Attached 43 | 6 . 3 4 . 5 1 21 2 1 Power 8 | 1 . 1 . . 1 . 5 . . Engine 3 | 1 . 1 . . 1 . . . . Core 5 | . . . . . . . 5 . . Reactor . | . . . . . . . . . . Propulsion 15 | 2 . . 4 . . 1 6 2 . Treads . | . . . . . . . . . . Leg 13 | . . . 4 . . 1 6 2 . Wheel 2 | 2 . . . . . . . . . Hover . | . . . . . . . . . . Flight . | . . . . . . . . . . Utility 11 | 1 . 1 . . 2 . 7 . . Device . | . . . . . . . . . . Storage 1 | 1 . . . . . . . . . Processor 1 | . . 1 . . . . . . . Hackware 8 | . . . . . 1 . 7 . . Protection 1 | . . . . . 1 . . . . Artifact . | . . . . . . . . . . Weapon 9 | 2 . 1 . . 2 . 3 . 1 Energy Gun 1 | . . 1 . . . . . . . Energy Cannon . | . . . . . . . . . . Ballistic Gun 3 | 2 . . . . . . 1 . . Ballistic Cannon 2 | . . . . . . . 1 . 1 Launcher 1 | . . . . . 1 . . . . Special Weapon . | . . . . . . . . . . Impact Weapon 1 | . . . . . 1 . . . . Slashing Weapon 1 | . . . . . . . 1 . . Piercing Weapon . | . . . . . . . . . . Special Melee Weapon . | . . . . . . . . . . Unidentified Prototypes 1 | . . . . . . . . 1 . Parts Lost 25 | . . . . . . . 17 2 6 Power 5 | . . . . . . . 4 . 1 Propulsion 12 | . . . . . . . 7 2 3 Utility 2 | . . . . . . . 2 . . Weapon 6 | . . . . . . . 4 . 2 Highest Loss Streak 6 | . . . . . . . 5 1 6 To Critical Strikes 1 | . . . . . . . . . 1 Average Backups 6 | 2 6 7 7 8 7 7 6 7 6 Power 1 | . 1 1 2 2 1 1 . 1 1 Propulsion 1 | 1 4 2 2 3 2 2 1 1 1 Utility . | . . . . . . . . . 1 Weapon 3 | . 1 3 3 3 3 4 3 4 3 Tool/Special . | . . . . . . . . . . Unused Backups 7 | . . 2 1 . 1 . . . 3 Power . | . . . . . . . . . . Propulsion 2 | . . 2 . . . . . . . Utility 1 | . . . . . . . . . 1 Weapon 4 | . . . 1 . 1 . . . 2 Tool/Special . | . . . . . . . . . . Average Slot Usage (%) 77 | . 85 97 91 85 61 70 67 81 86 Engine 5 | . 14 13 14 14 9 7 1 . . Core 3 | . . . . . . . 5 7 5 Leg 21 | . . . 15 28 18 24 26 28 34 Wheel 5 | . 28 28 13 . . . . . . Storage 9 | . 14 14 14 14 9 7 7 7 7 Processor 2 | . . 12 6 . . . . . . Hackware 11 | . . . . . 6 7 12 30 30 Energy Gun 4 | . . 12 14 14 5 7 . . . Ballistic Gun 6 | . 28 15 14 14 9 6 2 . . Ballistic Cannon 2 | . . . . . . . 2 7 6 Impact Weapon 1 | . . . . . 3 . 3 . . Peak Build Rating 65 | 6 6 14 29 13 31 33 58 65 65 Average Rating 32 | 4 6 13 13 13 14 31 37 59 61 On Entrance 23 | . 6 6 14 13 13 31 32 58 65 Avg Prop Armor Cover (%) . | . . . . . . . . . . Naked Turns . | . . . . . . . . . . Heaviest Build 37 | 13 13 15 15 15 33 37 33 30 30 Greatest Support 115 | 26 26 26 60 20 50 60 95 115 115 Greatest Overweight (x) 1 | . . . 1 . 1 . . . . Average Overweight (x) . | . . . . . . . . . . Largest Inventory Capacity 8 | 8 8 8 8 8 8 8 8 8 8 Average Capacity 7 | 6 8 8 8 8 8 8 8 8 8 Most Carried 8 | 6 6 8 8 8 8 7 8 8 8 Average Carried 7 | 3 6 7 7 8 7 7 6 8 7 Final Capacity 8 | 8 8 8 8 8 8 8 8 8 8 Final Carried 8 | 6 6 8 8 8 7 7 8 8 5 Class Distribution -------------------- 100% | Mutant Dominant Class ---------------- Mutant | -10/Materials Mutant | -10/Mines Mutant | -10/Exiles Mutant | -9/Mines Mutant | -8/Materials Mutant | -7/Factory Mutant | -7/Garrison Mutant | -7/Factory Mutant | -7/Garrison Resources | -11 -10 -10 -10 -9 -8 -7 -7 -7 -7 ----------- Run | Yrd Mat Min Exi Min Mat Fac Gar Fac Gar Matter Collected 1270 | 190 . 123 . 46 1 39 635 236 . Remotely . | . . . . . . . . . . Salvage Created 1363 | . . 61 . 46 33 63 896 195 69 Parts 87 | . . 11 . 6 2 3 36 24 5 Haulers Intercepted 1 | . . . . . . . . 1 . Recyclers Shooed 2 | . . . . 1 . . . 1 . Parts Field Recycled . | . . . . . . . . . . Retrieved Matter . | . . . . . . . . . . Parts Self-Destructed . | . . . . . . . . . . Prevented . | . . . . . . . . . . Parts Restored . | . . . . . . . . . . Kills | -11 -10 -10 -10 -9 -8 -7 -7 -7 -7 ------- Run | Yrd Mat Min Exi Min Mat Fac Gar Fac Gar Combat Hostiles Destroyed 42 | . . 4 . 3 1 3 26 2 3 Melee 7 | . . . . . . . 7 . . Guns 11 | . . 4 . 3 1 1 2 . . Cannons 10 | . . . . . . . 5 2 3 AOE 9 | . . . . . . 2 7 . . Classes Destroyed 10 | . . 2 . . 1 2 2 2 1 Worker 2 | . . . . . . . . 2 . Builder 8 | . . 1 . . . 1 . 6 . Hauler 1 | . . . . . . . . 1 . Watcher 2 | . . . . . . 1 . 1 . Swarmer 18 | . . 4 . 3 . . 9 1 1 Grunt 18 | . . . . . . 3 14 1 . Duelist 1 | . . . . . . . 1 . . Sentry 2 | . . . . . 1 . 1 . . Hunter 1 | . . . . . . . 1 . . Programmer 2 | . . . . . . . . . 2 Best Kill Streak 9 | . . 2 . 3 1 4 9 4 3 Combat Bots Only 9 | . . 2 . 3 1 3 9 1 3 Max Kills in Single Turn 4 | . . 1 . 1 1 2 4 2 1 Gunslinging 1 | . . . . . . . 1 . . Exploded 4 | . . . . . . 2 4 . . Melee 1 | . . . . . . . 1 . . Uniques/NPCs Destroyed . | . . . . . . . . . . Combat | -11 -10 -10 -10 -9 -8 -7 -7 -7 -7 -------- Run | Yrd Mat Min Exi Min Mat Fac Gar Fac Gar Hostile Shots Fired 442 | . . 9 . 13 6 23 226 26 139 Missed 146 | . . 3 . 4 2 12 69 11 45 Hits 296 | . . 6 . 9 4 11 157 15 94 Projectile 296 | . . 6 . 9 4 11 157 15 94 Critical Strikes 7 | . . . . . . 1 1 . 5 Damage Taken 4268 | . . 66 . 68 61 198 2204 233 1438 Core 744 | . . 33 . 8 . . 307 43 353 Absorbed by Shields . | . . . . . . . . . . Core Remaining (%) 94 | 100 . . . 83 100 . . . . Volleys Fired 104 | . 1 10 . 5 3 9 32 29 15 Largest 2 | . 2 2 . 2 2 2 2 1 1 Hottest 99 | . 40 83 . 83 56 99 99 65 65 Shots Fired 143 | . 2 20 . 10 6 18 44 29 14 Gun 73 | . 2 20 . 10 3 12 26 . . Cannon 58 | . . . . . . . 15 29 14 Launcher 12 | . . . . . 3 6 3 . . Special . | . . . . . . . . . . Kinetic 92 | . 2 10 . 5 3 3 26 29 14 Thermal 39 | . . 10 . 5 . 9 15 . . Explosive 12 | . . . . . 3 6 3 . . Electromagnetic . | . . . . . . . . . . Robot Hit Streak 4 | . 1 2 . 3 . 2 4 4 2 Robot Miss Streak 5 | . 1 4 . 5 . 4 5 4 4 Penetration Max 1 | . . . . . . . . 1 1 Secondary Targets 1 | . . . . . . . 1 . . Max Gunslinging Chain 1 | . . . . . . . 1 . . Shots Hit Robots 89 | . 1 8 . 7 . 5 46 16 6 Core Hits 65 | . 1 5 . 3 2 11 31 8 4 Critical Kills 1 | . . . . . . . 1 . . Critical Parts Destroyed 6 | . . . . . . . 6 . . Critical Strikes 15 | . . . . . . . 9 4 2 Burn 1 | . . . . . . . 1 . . Blast 7 | . . . . . . . 1 4 2 Smash 7 | . . . . . . . 7 . . Melee Attacks 47 | . . . . . 3 . 40 . 4 Impact 43 | . . . . . 3 . 36 . 4 Slashing 4 | . . . . . . . 4 . . Piercing . | . . . . . . . . . . Sneak Attacks . | . . . . . . . . . . Combat Hostiles . | . . . . . . . . . . Follow-up Attacks 3 | . . . . . . . 3 . . Damage Inflicted 5102 | . 14 127 . 111 68 585 2415 1156 626 Guns 509 | . 14 109 . 102 14 62 208 . . Cannons 2203 | . . . . . . . 570 1156 477 Explosions 1223 | . . . . . 54 523 646 . . Melee 1053 | . . . . . . . 991 . 62 Ramming 114 | . . 18 . 9 . . . . 87 Kinetic 2446 | . 14 77 . 53 14 12 643 1156 477 Thermal 266 | . . 32 . 49 . 50 135 . . Explosive 1223 | . . . . . 54 523 646 . . Electromagnetic . | . . . . . . . . . . Impact 998 | . . . . . . . 936 . 62 Slashing 55 | . . . . . . . 55 . . Piercing . | . . . . . . . . . . Highest Corruption 2 | . . . . . . . . . 2 Average Corruption 1 | . . . . . . . . . 1 Corruption Purged . | . . . . . . . . . . Corruption Blocked . | . . . . . . . . . . Effects 2 | . . . . . . . . . 2 Parts Rejected 1 | . . . . . . . . . 1 Weapon Failures 1 | . . . . . . . . . 1 Overload Shots . | . . . . . . . . . . Overflow Damage 797 | . . . . . . 12 329 238 218 Projectiles 456 | . . . . . . . 37 238 181 Explosions 24 | . . . . . . 12 12 . . Melee 317 | . . . . . . . 280 . 37 Knockbacks 11 | . . 1 . . . . 5 4 1 Impact 4 | . . 1 . . . . 3 . . Kinetic 6 | . . . . . . . 2 3 1 Secondary 1 | . . . . . . . . 1 . Self-Inflicted Damage 156 | . . 9 . . . 18 129 . . Shots 3 | . . . . . . 1 2 . . Rammed 1 | . . 1 . . . . . . . Targets Rammed 18 | . . 1 . 1 . . . . 16 Kicked 17 | . . . . 1 . . . . 16 Crushed . | . . . . . . . . . . Highest Temperature 378 | . . 58 . 120 1 302 378 20 20 Average Temperature 78 | . . 23 . 62 1 116 136 10 10 Received Heat Transfer 654 | . . . . . 27 117 510 . . Effects 1 | . . . . . . . 1 . . Energy Bleed 1 | . . . . . . . 1 . . Siege Activations . | . . . . . . . . . . Martial Activations . | . . . . . . . . . . Shielding Activations . | . . . . . . . . . . Robots Disrupted . | . . . . . . . . . . Combat Hostiles . | . . . . . . . . . . Robots Corrupted 5 | . . . . . . . 5 . . Combat Hostiles 5 | . . . . . . . 5 . . Parts Fried 7 | . . . . . . . 7 . . Impact Corruptions 11 | . . . . . . . 10 . 1 Robots Melted . | . . . . . . . . . . Combat Hostiles . | . . . . . . . . . . Parts Melted . | . . . . . . . . . . Heat Transferred 666 | . . 74 . 111 . 111 370 . . Parts Sabotaged . | . . . . . . . . . . Parts Stolen . | . . . . . . . . . . Parts Stripped . | . . . . . . . . . . Power Chain Reactions . | . . . . . . . . . . Alert | -11 -10 -10 -10 -9 -8 -7 -7 -7 -7 ------- Run | Yrd Mat Min Exi Min Mat Fac Gar Fac Gar Maximum Alert Level 3 | . . . . . . . 3 2 2 Low Security (%) 40 | 100 100 100 . 100 100 100 5 . . Level 1 13 | . . . . . . . 27 . 37 Level 2 33 | . . . . . . . 32 100 62 Level 3 13 | . . . . . . . 34 . . Level 4 . | . . . . . . . . . . Level 5 . | . . . . . . . . . . High Security . | . . . . . . . . . . Max Security . | . . . . . . . . . . Peak Influence 919 | . . 63 . 70 39 128 919 547 497 Initial 482 | . . . . . 11 8 89 482 310 Average 319 | . . 11 . 47 6 30 538 461 398 Influence Increases 1844 | . . 134 . 70 51 168 1020 204 197 Destroy 0b10 Robot/C 1020 | . . 100 . 60 20 60 640 80 60 Destroy 0b10 Robot/NC 65 | . . 5 . . . 10 . 50 . Destroy Leader 106 | . . 10 . 10 10 12 30 24 10 Allied During Kill 55 | . . 4 . . . . 45 6 . Successful Hack 24 | . . . . . . 24 . . . Disable Machine 75 | . . . . . . 45 . 30 . Anti-Garrison Action 250 | . . . . . . . 200 . 50 Destroy Structure 204 | . . . . . 21 17 90 14 62 Lose Combat Pursuer 45 | . . 15 . . . . 15 . 15 Influence Decreases 1397 | . . 71 63 40 62 59 229 679 194 Entered New Map 703 | . . . 63 . 19 11 39 437 134 Time Decay 424 | . . 71 . 40 43 48 . 222 . Lost Part 250 | . . . . . . . 170 20 60 Lost Ally 20 | . . . . . . . 20 . . Squads Dispatched 7 | . 1 . . . . . . 6 . Investigation . | . . . . . . . . . . Extermination . | . . . . . . . . . . Reinforcement 5 | . 1 . . . . . . 4 . Assault 2 | . . . . . . . . 2 . Garrison . | . . . . . . . . . . Intercept . | . . . . . . . . . . Searches Triggered . | . . . . . . . . . . Construction Impeded 2 | . . . . . . . . 2 . Haulers Reinforced 1 | . . . . . . . . 1 . Active Scanning Responses . | . . . . . . . . . . Cargo Convoy Interrupts . | . . . . . . . . . . Stealth | -11 -10 -10 -10 -9 -8 -7 -7 -7 -7 --------- Run | Yrd Mat Min Exi Min Mat Fac Gar Fac Gar Distress Signals . | . . . . . . . . . . Communications Jammed . | . . . . . . . . . . Distress Signals . | . . . . . . . . . . Times Spotted 68 | . . 7 . 3 2 5 33 8 10 Peak Tracking Total 12 | . 1 3 . 1 2 4 12 5 8 Tactical Retreats 3 | . . 1 . . . . 1 . 1 Traps | -11 -10 -10 -10 -9 -8 -7 -7 -7 -7 ------- Run | Yrd Mat Min Exi Min Mat Fac Gar Fac Gar Traps Triggered 1 | . . . . . . . . 1 . Indirectly . | . . . . . . . . . . Trap Hack Attempts . | . . . . . . . . . . Triggered . | . . . . . . . . . . Disarmed . | . . . . . . . . . . Reprogrammed . | . . . . . . . . . . Reused . | . . . . . . . . . . Traps Extracted . | . . . . . . . . . . Installed . | . . . . . . . . . . Triggered . | . . . . . . . . . . Machines | -11 -10 -10 -10 -9 -8 -7 -7 -7 -7 ---------- Run | Yrd Mat Min Exi Min Mat Fac Gar Fac Gar Machines Disabled 11 | . . . . . . 3 4 2 2 Max in Single Turn 2 | . . . . . . 1 1 1 2 Garrison Relay 2 | . . . . . . . 2 . . Phase Generator 2 | . . . . . . . 1 . 1 Machines Repaired . | . . . . . . . . . . Machines Dismantled . | . . . . . . . . . . Machines Sabotaged . | . . . . . . . . . . Overloaded Fab Kills . | . . . . . . . . . . Hacking | -11 -10 -10 -10 -9 -8 -7 -7 -7 -7 --------- Run | Yrd Mat Min Exi Min Mat Fac Gar Fac Gar Machines Accessed 12 | . 1 1 2 . 2 2 2 1 1 Terminals 6 | . 1 . . . 1 1 2 . 1 Fabricators . | . . . . . . . . . . Repair Stations . | . . . . . . . . . . Recycling Units . | . . . . . . . . . . Scanalyzers 1 | . . . . . 1 . . . . Garrison Access 2 | . . . . . . 1 . 1 . Total Hacks 20 | . 3 1 2 . 4 2 4 2 2 Successful 10 | . . 1 2 . 2 1 2 2 . Failed 9 | . 3 . . . 1 1 2 . 2 Catastrophic 1 | . . . . . . 1 . . . Database Lockouts 1 | . . . . . 1 . . . . Manual 4 | . . . 1 . 2 1 . . . Terminals 11 | . 3 . . . 1 1 4 . 2 Fabricators . | . . . . . . . . . . Repair Stations . | . . . . . . . . . . Recycling Units . | . . . . . . . . . . Scanalyzers 3 | . . . . . 3 . . . . Garrison Access 3 | . . . . . . 1 . 2 . Terminal Hacks 5 | . . 1 2 . . . 2 . . Record 1 | . . . 1 . . . . . . Open Door 2 | . . 1 . . . . 1 . . Emergency Access Points 1 | . . . . . . . 1 . . Proto ID Catalog 1 | . . . 1 . . . . . . Fabricator Hacks . | . . . . . . . . . . Repair Station Hacks . | . . . . . . . . . . Recycling Unit Hacks . | . . . . . . . . . . Scanalyzer 2 | . . . . . 2 . . . . Retrieve Study 2 | . . . . . 2 . . . . Garrison Access Hacks 3 | . . . . . . 1 . 2 . Unlock Access 2 | . . . . . . 1 . 1 . Coupler Status 1 | . . . . . . . . 1 . Unauthorized Hacks . | . . . . . . . . . . Terminals . | . . . . . . . . . . Fabricators . | . . . . . . . . . . Repair Stations . | . . . . . . . . . . Recycling Units . | . . . . . . . . . . Scanalyzers . | . . . . . . . . . . Garrison Access . | . . . . . . . . . . Data Cores Recovered . | . . . . . . . . . . Used . | . . . . . . . . . . Hacking Detections 8 | . 1 . . . 2 2 1 1 1 Full Trace Events 1 | . . . . . . . 1 . . Feedback Events . | . . . . . . . . . . Feedback Blocked . | . . . . . . . . . . Robot Schematics Acquired . | . . . . . . . . . . Robots Built . | . . . . . . . . . . Authchips . | . . . . . . . . . . Time . | . . . . . . . . . . Total Robot Build Rating . | . . . . . . . . . . Part Schematics Acquired . | . . . . . . . . . . Parts Built . | . . . . . . . . . . Authchips . | . . . . . . . . . . Time . | . . . . . . . . . . Total Part Build Rating . | . . . . . . . . . . Part Studies Acquired 2 | . . . . . 2 . . . . Parts Repaired . | . . . . . . . . . . Time . | . . . . . . . . . . Parts Recycled . | . . . . . . . . . . Recycled Matter . | . . . . . . . . . . Retrieved Matter . | . . . . . . . . . . Retrieved Components . | . . . . . . . . . . Parts Scanalyzed . | . . . . . . . . . . Part Schematics Acquired . | . . . . . . . . . . Parts Damaged . | . . . . . . . . . . Bothacking | -11 -10 -10 -10 -9 -8 -7 -7 -7 -7 ------------ Run | Yrd Mat Min Exi Min Mat Fac Gar Fac Gar Used RIF Installer 2 | . . . . . . . 2 . . Zone Cloak 1 | . . . . . . . 1 . . Robots Hacked . | . . . . . . . . . . Non-combat . | . . . . . . . . . . Combat . | . . . . . . . . . . Robot Hacks Applied . | . . . . . . . . . . Relay Couplers Released 7 | . . . . . . . 7 . . Machine Destruction 7 | . . . . . . . 7 . . Attached 4 | . . . . . . . 4 . . Fabnet Peak Effective % . | . . . . . . . . . . Robots Rewired 3 | . . . . . . . 3 . . Allies Hacked . | . . . . . . . . . . Hacks Repelled . | . . . . . . . . . . Allies | -11 -10 -10 -10 -9 -8 -7 -7 -7 -7 -------- Run | Yrd Mat Min Exi Min Mat Fac Gar Fac Gar Total Allies 4 | . . 1 . . . . 3 . . Largest Group 3 | . . 1 1 . . . 3 1 . Highest-Rated Group 95 | . . 31 31 . . . 95 39 . Highest-Rated Ally 39 | . . 31 31 . . . 39 39 . Total Orders . | . . . . . . . . . . Ally Attacks 60 | . . 1 . . . . 41 18 . Total Damage 1116 | . . 20 . . . . 752 344 . Kills 11 | . . 1 . . . . 7 3 . Allies Corrupted . | . . . . . . . . . . Allies Melted . | . . . . . . . . . . Intel | -11 -10 -10 -10 -9 -8 -7 -7 -7 -7 ------- Run | Yrd Mat Min Exi Min Mat Fac Gar Fac Gar Active Infowar (turns) 503 | . . 386 117 . . . . . . Machine Analysis 503 | . . 386 117 . . . . . . Robot Analysis Total . | . . . . . . . . . . Derelict Logs Recovered 2 | . . 2 . . . . . . . Drone Launches . | . . . . . . . . . . Drone Recoveries . | . . . . . . . . . . Exploration | -11 -10 -10 -10 -9 -8 -7 -7 -7 -7 ------------- Run | Yrd Mat Min Exi Min Mat Fac Gar Fac Gar Turns Passed 3131 | 58 48 437 272 81 258 202 1131 477 167 Spaces Moved 2557 | 53 51 434 254 55 190 170 875 386 89 Core 10 | 10 . . . . . . . . . Treads . | . . . . . . . . . . Legs 1889 | . . . 124 55 190 170 875 386 89 Wheels 658 | 43 51 434 130 . . . . . . Hover . | . . . . . . . . . . Flight . | . . . . . . . . . . Fastest Speed 50 | 50 90 90 90 120 100 100 90 100 103 Average Speed 100 | 81 90 90 104 120 120 100 97 103 111 Slowest Speed 175 | 90 90 90 120 120 175 101 105 112 112 Overloaded Moves . | . . . . . . . . . . Propulsion Burnouts . | . . . . . . . . . . Robots Hopped . | . . . . . . . . . . Potential Cave-ins . | . . . . . . . . . . Cave-ins Triggered . | . . . . . . . . . . Exploration Rate (%) 29 | 3 15 81 62 10 22 5 76 9 13 Regions Visited 9 Branch Regions 3 Pre-discovered Areas 3 | . . 2 1 . . . . . . Known Exits Taken 2 | . . . . . . 1 . 1 . Unknown Exits Taken 6 | 1 1 1 1 1 1 . . . . Scrap Searched 2 | . . 2 . . . . . . . Spaces Dug 2 | . . . . . 2 . . . . Terrain Destroyed 219 | . . . . . 23 15 88 12 81 Melee 2 | . . . . . 2 . . . . Projectile 29 | . . . . . . . 7 12 10 AOE 188 | . . . . . 21 15 81 . 71 Terrain Rammed . | . . . . . . . . . . Walls Destroyed . | . . . . . . . . . . Machines Disabled . | . . . . . . . . . . Actions | -11 -10 -10 -10 -9 -8 -7 -7 -7 -7 --------- Run | Yrd Mat Min Exi Min Mat Fac Gar Fac Gar Total 2862 | 64 51 461 261 60 206 181 1033 419 126 Wait 16 | . . 3 . . . . 13 . . Move 2542 | 52 50 433 253 54 189 169 868 385 89 Hop . | . . . . . . . . . . Pick Up 32 | 6 . 6 . . 2 . 17 1 . Fast Attach 24 | 6 . 1 2 . 2 1 9 3 . Attach 22 | . . 1 . . 2 . 17 . 2 Detach 1 | . . . 1 . . . . . . Swap 10 | . . 1 2 . 3 2 2 . . Drop 16 | . . 4 3 . 2 . 6 1 . Fire 104 | . 1 10 . 5 3 9 32 29 15 Melee 43 | . . . . . 3 . 36 . 4 Ram 1 | . . 1 . . . . . . . Kick 17 | . . . . 1 . . . . 16 Crush . | . . . . . . . . . . Escape Stasis . | . . . . . . . . . . Rewire 34 | . . 1 . . . . 33 . . Trap . | . . . . . . . . . . Miscellaneous . | . . . . . . . . . . Route ------- -11/Scrapyard -10/Materials -10/Mines (discovered 3 exits: [*Mat x2] / *Exi) -10/Exiles (discovered 2 exits: [*Min x2]) -9/Mines -8/Materials -7/Factory (discovered 2 exits: Sto / Gar) -7/Garrison (discovered 3 exits: *Fac x3) -7/Factory -7/Garrison History --------- Turn | Location | Event 5 | -11/Scrapyard | Discovered new exit (range 14) 59 | -11/Scrapyard | Entered Materials 74 | -10/Materials | Discovered new exit (range 16) 107 | -10/Materials | Entered Mines 124 | -10/Mines | Met a Derelict bent on vengeance 125 | -10/Mines | Learned location of Storage (-7) 133 | -10/Mines | Met a Derelict who couldn't figure out how to use a Trap Extractor 253 | -10/Mines | Discovered new exit (range 5) 305 | -10/Mines | Build established: Mutant 326 | -10/Mines | Discovered new exit (range 8) 345 | -10/Mines | Escorted by a lone wolf Derelict 541 | -10/Mines | Deemed a non-threat by the Exiles lab entrance 541 | -10/Mines | Discovered new exit (range 5) 544 | -10/Mines | Entered Exiles 544 | -10/Exiles | Accompanied by 1 ally 558 | -10/Exiles | Discovered new exit (range 15) 567 | -10/Exiles | Met 8R-AWN 581 | -10/Exiles | Met EX-HEX 622 | -10/Exiles | Met EX-BIN 633 | -10/Exiles | Aligned with FarCom system 634 | -10/Exiles | Given EX-Vault access code 657 | -10/Exiles | Opened EX-Vault 663 | -10/Exiles | Found Potential Leg 666 | -10/Exiles | Found Potential Leg 691 | -10/Exiles | Warned to stay clear of 0b10 Research branches 732 | -10/Exiles | Met EX-DEC 753 | -10/Exiles | Learned location of Zion (-6) 805 | -10/Exiles | Discovered new exit (range 10) 816 | -10/Exiles | Left Exiles lab with Potential Leg 816 | -10/Exiles | Entered Mines 891 | -9/Mines | Discovered new exit (range 5) 897 | -9/Mines | Entered Materials 897 | -8/Materials | Evolved 4 slots: Propulsion x2, Utility x2 1054 | -8/Materials | Central database locked down 1114 | -8/Materials | Discovered new exit (range 15) 1155 | -8/Materials | Entered Factory 1155 | -7/Factory | Evolved 2 slots: Propulsion x1, Utility x1 1156 | -7/Factory | Identified exit to Storage 1356 | -7/Factory | Identified exit to Garrison 1357 | -7/Factory | Entered Garrison 1407 | -7/Garrison | Triggered checkpoint 1407 | -7/Garrison | Triggered checkpoint 1450 | -7/Garrison | Destroyed 9 combat bots 1489 | -7/Garrison | Lost 5 parts (2n3w) 1513 | -7/Garrison | Triggered checkpoint 1583 | -7/Garrison | Triggered checkpoint 1590 | -7/Garrison | Lost 4 parts (1p2n1u) 1609 | -7/Garrison | Discovered new exit (range 8) 1644 | -7/Garrison | Attempted to access garrison exit controls, blocked by remote lockdown 1663 | -7/Garrison | Triggered checkpoint 1708 | -7/Garrison | Garrison Relay disabled 1711 | -7/Garrison | Lost 5 parts (1p2n1u1w) 1878 | -7/Garrison | Discovered new exit (range 15) 1910 | -7/Garrison | Attempted to access garrison exit controls, blocked by remote lockdown 1953 | -7/Garrison | Installed Relay Interface Framework 2001 | -7/Garrison | Phase Generator disabled 2039 | -7/Garrison | Triggered checkpoint 2050 | -7/Garrison | Garrison Relay disabled 2359 | -7/Garrison | Triggered checkpoint 2385 | -7/Garrison | Expanded RIF knowledge: Zone Cloak 2425 | -7/Garrison | Discovered new exit (range 14) 2488 | -7/Garrison | Entered Factory 2488 | -7/Factory | Accompanied by 1 ally 2831 | -7/Factory | Allied Derelicts emerged from ambush trap array 2888 | -7/Factory | First assault squad dispatched 2963 | -7/Factory | Identified exit to Garrison 2965 | -7/Factory | Entered Garrison 3027 | -7/Garrison | Phase Generator disabled 3052 | -7/Garrison | Core integrity fell below 50% 3117 | -7/Garrison | Core integrity fell below 20% 3132 | -7/Garrison | Destroyed by S-27 Virus with Autogun Last Messages --------------- 03111_ Destroyed VTOL Module. 03111_ S-27 Virus system corrupted by crushing effect. 03112_ Hvy. Mace+ destroyed. 03113_ System corrupted: Imp. Titanium Leg rejected. 03114_ Kicked S-27 Virus. 03117_ Kicked S-27 Virus out of the way. 03118_ Kicked S-27 Virus. 03119_ Kicked S-27 Virus out of the way. 03121_ Kicked S-27 Virus. 03121_ S-27 Virus destroyed. 03123_ Kicked S-27 Virus out of the way. 03125_ Potential Leg destroyed. 03126_ Kicked S-27 Virus. 03128_ Kicked S-27 Virus out of the way. 03129_ Critical hit (Destroy). 03129_ Imp. Titanium Leg destroyed. 03130_ Kicked S-27 Virus. [Achievement: Achiever] Map ----- +----------------------------------------------------+ | ?????????????????????????????????????????????????? | | ?????????????????????????????????????????????????? | | ?????????????????????????????????????????????????? | | ?????????????????????????????????????????????????? | | ?????????????????????????????????????????????????? | | ?????????????????????????????????????????????????? | | ?????????????????????????????????????????????????? | | ?????????????????####????????????????????????????? | | ?????????????????#""#??????g?????????????????????? | | ?????????????????# T#??????g?????????????????????? | | ?????????????????# "#?? ?????????????????????????? | | ??????????#####??# ##?? ?????????????????????????? | | ??????????# #??# #??# ##### #??????????????????? | | ??????????# #### #### #??????????????????? | | ??????????# #?????Y?????????????????? | | ??????????# #???????????????????????? | | ????????######## #### #???????????????????????? | | ? ????#### # #### #??# #???????????????????????? | | ?? ##### # # #### #???????????????????????? | | ???? + ???????????????????????? | | ?????# # #### #???????????????????????? | | ?????# # #??# #???????????????????????? | | ????### ##?# #?????#??????????s??????? | | ????## ### ####? #???????#"""??????? | | ????## # ;##; ss;s##%#### ?????? | | ????## @[=!%!% ?????? | | ????# ##;;;; ss=!!%% ?????? | | ????## # ############;### ## ?????? | | ?????## #????????????#????????????????? | | ?????## ##?????????????????????????????? | | ??????## # ##??????????????????????????????? | | ???????### ###???????????????????????????????? | | ?????????#######?????????????????s???????????????? | | ?????????????????????????????????????????????????? | | ?????????????????????????????????????????????????? | | ?????????????????????????????????????????????????? | | ?????????????????????????????????????????????????? | | ?????????????????????????????????????????????????? | | ?????????????????????????????????????????????????? | | ?????????????????????????????????????????????????? | | ?????????????????????????????????????????????????? | | ?????????????????????????????????????????????????? | | ?????????????????????????????????????????????????? | | ?????????????????????????????????????????????????? | | ?????????????????????????????????????????????????? | | ?????????????????????????????????????????????????? | | ?????????????????????????????????????????????????? | | ?????????????????????????????????????????????????? | | ?????????????????????????????????????????????????? | | ?????????????????????????????????????????????????? | +----------------------------------------------------+ Best States ------------- Heat Dissipation 34 Energy Generation 14 Energy Capacity 250 Matter Stores 300 Matter Capacity 300 Sight Range 16 Terrain Scan Density 10 Armor Coverage 600 Evasion (%) 56 Defensive Hacking 10 Relay Coupler Types 2 Relay Coupler Value 97 Authchip Count 3 Item Schematics ----------------- None Robot Schematics ------------------ None Fabricated ------------ Nothing Repaired ---------- Nothing Studied --------- Aluminum Leg | -8/Materials | Hacked Hvy. Mace | -8/Materials | Hacked Alien Tech Used ----------------- None Achievements -------------- Achiever Join The Dark Side You Will Be Upgraded Challenges ------------ None Game ------ Seed ShockPortableWeb Manual? 0 Play Time 00:33:56 Cumulative 40.0 hours Start 2026.07.18 @ 14:00:37 End 2026.07.18 @ 14:32:58 Sessions 1 Manual Loads 0 Difficulty Rogue Special Mode None Game No. 58 Rogue 58 Adventurer 0 Explorer 0 Win Type - Total 1 Types 1/0/0/0/0/0/0/0/0/0 Lore% 30 Gallery% 33 Achievement% 25 Wizard Run 0 Options --------- Layout 1 ASCII 0 Keyboard 0 Movement Mouse Keybinds 0 Fullscreen 1 Font 20/SmallcapsGlow Map View 50x35 Zoom Use 0% Tactical HUD 1 Map Filters NONE Filters NONE Steam 1 RUN: af64b7a5-51cf-4c1c-8eb1-967b32855608